Cogmind - Beta 17 @@@ ROGUE MODE // 2026.07.08 @ 21:15:22 Player: IsAway Result: Destroyed by D-53 Grenadier with Mini Grenade Launcher Performance ------------- Evolutions (0) 0 Regions Visited (2) 400 Robots Destroyed (9) 45 Value Destroyed (74) 74 Prototype IDs (0) 0 Alien Tech Used (0) 0 Bonus (25) 25 TOTAL SCORE: 544 Bonus ------- Follower Combat Kills 25 Cogmind --------- Core Integrity 0/250 Matter 287/300 Energy 85/100 System Corruption 0% Temperature Cool (0) Movement Walking (120) Location -10/Mines Parts ------- > --- POWER (1) -------- (None) > --- PROPULSION (2) --- Flexi-carbon Leg > --- UTILITY (2) ------ Signal Interpreter > --- WEAPON (2) ------- Light Assault Rifle > --- INVENTORY (5) ---- Medium Storage Unit Compact Matter Pod (150) Compact Matter Pod (119) Improved Terrain Scanner Mining Laser Peak State ------------ > --- POWER ------------ (None) > --- PROPULSION ------- Flexi-carbon Leg > --- UTILITY ---------- Signal Interpreter > --- WEAPON ----------- Light Assault Rifle > --- INVENTORY -------- Medium Storage Unit Compact Matter Pod Compact Matter Pod Improved Terrain Scanner Mining Laser [Rating: 8] Favorites ----------- Power Ion Engine Engine Ion Engine Propulsion Compact Wheel Leg Aluminum Leg Wheel Compact Wheel Utility Signal Interpreter Device Seismic Detector Storage Large Storage Unit Processor Signal Interpreter Weapon Assault Rifle Ballistic Gun Assault Rifle Special Weapon Mining Laser Build | -11 -10 -10 ------- Run | Yrd Mat Min Slots Evolved . | . . . Power . | . . . Propulsion . | . . . Utility . | . . . Weapon . | . . . Parts Attached 15 | 10 3 2 Power 1 | 1 . . Engine 1 | 1 . . Core . | . . . Reactor . | . . . Propulsion 5 | 4 . 1 Treads . | . . . Leg 3 | 2 . 1 Wheel 2 | 2 . . Hover . | . . . Flight . | . . . Utility 6 | 3 2 1 Device 1 | 1 . . Storage 4 | 2 1 1 Processor 1 | . 1 . Hackware . | . . . Protection . | . . . Artifact . | . . . Weapon 3 | 2 1 . Energy Gun . | . . . Energy Cannon . | . . . Ballistic Gun 2 | 2 . . Ballistic Cannon . | . . . Launcher . | . . . Special Weapon 1 | . 1 . Impact Weapon . | . . . Slashing Weapon . | . . . Piercing Weapon . | . . . Special Melee Weapon . | . . . Unidentified Prototypes . | . . . Parts Lost 5 | . 1 4 Power 1 | . 1 . Propulsion 2 | . . 2 Utility . | . . . Weapon 2 | . . 2 Highest Loss Streak 3 | . 1 3 To Critical Strikes . | . . . Average Backups 4 | . 5 5 Power . | . . . Propulsion . | . 2 . Utility 3 | . 2 4 Weapon . | . 1 . Tool/Special . | . . . Unused Backups 4 | . . 4 Power . | . . . Propulsion . | . . . Utility 3 | . . 3 Weapon 1 | . . 1 Tool/Special . | . . . Average Slot Usage (%) 81 | . 97 76 Engine 2 | . 12 . Leg 6 | . 28 . Wheel 17 | . . 22 Device 2 | . 13 . Storage 13 | . 14 13 Processor 11 | . 1 14 Ballistic Gun 23 | . 26 22 Special Weapon 2 | . 2 2 Peak Build Rating 8 | 7 7 8 Average Rating 6 | 5 6 5 On Entrance 4 | . 7 6 Avg Prop Armor Cover (%) 9 | 9 . . Naked Turns . | . . . Heaviest Build 23 | 14 19 23 Greatest Support 26 | 26 20 26 Greatest Overweight (x) 4 | 4 . 1 Average Overweight (x) . | . . . Largest Inventory Capacity 15 | 8 10 15 Average Capacity 11 | 7 9 13 Most Carried 7 | 5 7 7 Average Carried 4 | . 5 5 Final Capacity 10 | 8 10 5 Final Carried 7 | 4 7 5 Class Distribution -------------------- 100% | Mutant Dominant Class ---------------- Mutant | -10/Materials Mutant | -10/Mines Resources | -11 -10 -10 ----------- Run | Yrd Mat Min Matter Collected 801 | 140 48 613 Remotely . | . . . Salvage Created 268 | 87 48 133 Parts 17 | 10 5 2 Haulers Intercepted . | . . . Recyclers Shooed 2 | 1 . 1 Parts Field Recycled . | . . . Retrieved Matter . | . . . Parts Self-Destructed . | . . . Prevented . | . . . Parts Restored . | . . . Kills | -11 -10 -10 ------- Run | Yrd Mat Min Combat Hostiles Destroyed 3 | . 3 . Guns 3 | . 3 . Classes Destroyed 4 | 2 1 1 Worker 1 | . . 1 Tunneler 3 | 2 . 1 Recycler 2 | 1 . 1 Swarmer 3 | . 3 . Best Kill Streak 3 | 2 3 2 Combat Bots Only 3 | . 3 . Max Kills in Single Turn 1 | 1 1 1 Gunslinging . | . . . Exploded . | . . . Melee . | . . . Uniques/NPCs Destroyed . | . . . Combat | -11 -10 -10 -------- Run | Yrd Mat Min Hostile Shots Fired 79 | . 69 10 Missed 19 | . 19 . Hits 60 | . 50 10 Projectile 60 | . 50 10 AOE 9 | . . 9 Critical Strikes 2 | . 2 . Damage Taken 818 | . 433 385 Core 256 | . 61 195 Absorbed by Shields . | . . . Core Remaining (%) 100 | 100 . . Volleys Fired 57 | 12 22 23 Largest 2 | 2 2 2 Hottest 120 | 40 120 120 Shots Fired 108 | 24 44 40 Gun 105 | 24 43 38 Cannon . | . . . Launcher . | . . . Special 3 | . 1 2 Kinetic 105 | 24 43 38 Thermal 3 | . 1 2 Explosive . | . . . Electromagnetic . | . . . Robot Hit Streak 9 | 4 3 9 Robot Miss Streak 7 | 3 7 7 Penetration Max . | . . . Secondary Targets 2 | . 2 . Max Gunslinging Chain 1 | . 1 . Shots Hit Robots 49 | 14 13 22 Core Hits 14 | 5 4 5 Critical Kills 2 | . 1 1 Critical Parts Destroyed . | . . . Critical Strikes 3 | . 1 2 Destroy 3 | . 1 2 Melee Attacks . | . . . Impact . | . . . Slashing . | . . . Piercing . | . . . Sneak Attacks . | . . . Combat Hostiles . | . . . Follow-up Attacks . | . . . Damage Inflicted 570 | 143 163 264 Guns 508 | 143 163 202 Cannons . | . . . Explosions . | . . . Melee . | . . . Ramming 14 | . . 14 Kinetic 508 | 143 163 202 Thermal 48 | . . 48 Explosive . | . . . Electromagnetic . | . . . Impact . | . . . Slashing . | . . . Piercing . | . . . Highest Corruption . | . . . Average Corruption . | . . . Corruption Purged . | . . . Corruption Blocked . | . . . Overload Shots . | . . . Overflow Damage . | . . . Projectiles . | . . . Explosions . | . . . Melee . | . . . Knockbacks . | . . . Impact . | . . . Kinetic . | . . . Secondary . | . . . Self-Inflicted Damage 6 | . . 6 Shots . | . . . Rammed 3 | . . 3 Targets Rammed 3 | . . 3 Kicked . | . . . Crushed . | . . . Highest Temperature 27 | . 27 6 Average Temperature 13 | . 16 6 Received Heat Transfer 102 | . 90 12 Siege Activations . | . . . Martial Activations . | . . . Shielding Activations . | . . . Robots Disrupted . | . . . Combat Hostiles . | . . . Robots Corrupted . | . . . Combat Hostiles . | . . . Parts Fried . | . . . Impact Corruptions . | . . . Robots Melted . | . . . Combat Hostiles . | . . . Parts Melted . | . . . Heat Transferred 100 | . . 100 Parts Sabotaged . | . . . Parts Stolen . | . . . Parts Stripped . | . . . Power Chain Reactions . | . . . Alert | -11 -10 -10 ------- Run | Yrd Mat Min Maximum Alert Level . | . . . Low Security (%) 100 | 100 100 100 Level 1 . | . . . Level 2 . | . . . Level 3 . | . . . Level 4 . | . . . Level 5 . | . . . High Security . | . . . Max Security . | . . . Peak Influence 70 | 10 70 30 Initial 17 | . 3 17 Average 6 | . 26 3 Influence Increases 168 | 15 85 68 Destroy 0b10 Robot/C 80 | . 60 20 Destroy 0b10 Robot/NC 30 | 15 . 15 Destroy Leader 10 | . 10 . Allied During Kill 3 | . . 3 Disable Machine 15 | . 15 . Lose Combat Pursuer 30 | . . 30 Influence Decreases 168 | 10 45 113 Entered New Map 30 | . 2 28 Time Decay 105 | 10 33 62 Lost Part 10 | . 10 . Lost Ally 23 | . . 23 Squads Dispatched 1 | . 1 . Investigation . | . . . Extermination . | . . . Reinforcement 1 | . 1 . Assault . | . . . Garrison . | . . . Intercept . | . . . Searches Triggered . | . . . Construction Impeded . | . . . Haulers Reinforced . | . . . Active Scanning Responses . | . . . Cargo Convoy Interrupts . | . . . Stealth | -11 -10 -10 --------- Run | Yrd Mat Min Distress Signals 1 | . 1 . Communications Jammed . | . . . Distress Signals . | . . . Times Spotted 19 | . 14 5 Peak Tracking Total 9 | . 9 3 Tactical Retreats 1 | . . 1 Traps | -11 -10 -10 ------- Run | Yrd Mat Min Traps Triggered . | . . . Indirectly . | . . . Trap Hack Attempts . | . . . Triggered . | . . . Disarmed . | . . . Reprogrammed . | . . . Reused . | . . . Traps Extracted . | . . . Installed . | . . . Triggered . | . . . Machines | -11 -10 -10 ---------- Run | Yrd Mat Min Machines Disabled 1 | . 1 . Max in Single Turn 1 | . 1 . Machines Repaired . | . . . Machines Dismantled . | . . . Machines Sabotaged . | . . . Overloaded Fab Kills . | . . . Hacking | -11 -10 -10 --------- Run | Yrd Mat Min Machines Accessed . | . . . Terminals . | . . . Fabricators . | . . . Repair Stations . | . . . Recycling Units . | . . . Scanalyzers . | . . . Garrison Access . | . . . Total Hacks . | . . . Successful . | . . . Failed . | . . . Catastrophic . | . . . Database Lockouts . | . . . Manual . | . . . Terminals . | . . . Fabricators . | . . . Repair Stations . | . . . Recycling Units . | . . . Scanalyzers . | . . . Garrison Access . | . . . Terminal Hacks . | . . . Fabricator Hacks . | . . . Repair Station Hacks . | . . . Recycling Unit Hacks . | . . . Scanalyzer . | . . . Garrison Access Hacks . | . . . Unauthorized Hacks . | . . . Terminals . | . . . Fabricators . | . . . Repair Stations . | . . . Recycling Units . | . . . Scanalyzers . | . . . Garrison Access . | . . . Data Cores Recovered . | . . . Used . | . . . Hacking Detections . | . . . Full Trace Events . | . . . Feedback Events . | . . . Feedback Blocked . | . . . Robot Schematics Acquired . | . . . Robots Built . | . . . Authchips . | . . . Time . | . . . Total Robot Build Rating . | . . . Part Schematics Acquired . | . . . Parts Built . | . . . Authchips . | . . . Time . | . . . Total Part Build Rating . | . . . Part Studies Acquired . | . . . Parts Repaired . | . . . Time . | . . . Parts Recycled . | . . . Recycled Matter . | . . . Retrieved Matter . | . . . Retrieved Components . | . . . Parts Scanalyzed . | . . . Part Schematics Acquired . | . . . Parts Damaged . | . . . Bothacking | -11 -10 -10 ------------ Run | Yrd Mat Min Used RIF Installer . | . . . Robots Hacked . | . . . Non-combat . | . . . Combat . | . . . Robot Hacks Applied . | . . . Relay Couplers Released . | . . . Fabnet Peak Effective % . | . . . Robots Rewired . | . . . Allies Hacked . | . . . Hacks Repelled . | . . . Allies | -11 -10 -10 -------- Run | Yrd Mat Min Total Allies 3 | . . 3 Largest Group 3 | . . 3 Highest-Rated Group 40 | . . 40 Highest-Rated Ally 16 | . . 16 Total Orders . | . . . Ally Attacks 5 | . . 5 Total Damage 50 | . . 50 Kills 1 | . . 1 Allies Corrupted . | . . . Allies Melted . | . . . Intel | -11 -10 -10 ------- Run | Yrd Mat Min Active Infowar (turns) 119 | 3 116 . Seismic 119 | 3 116 . Robot Analysis Total . | . . . Derelict Logs Recovered 2 | . . 2 Drone Launches . | . . . Drone Recoveries . | . . . Exploration | -11 -10 -10 ------------- Run | Yrd Mat Min Turns Passed 729 | 114 129 486 Spaces Moved 532 | 55 49 428 Core 6 | 2 . 4 Treads . | . . . Legs 70 | 21 49 . Wheels 456 | 32 . 424 Hover . | . . . Flight . | . . . Fastest Speed 50 | 50 120 50 Average Speed 96 | 105 120 93 Slowest Speed 250 | 250 120 115 Overloaded Moves . | . . . Propulsion Burnouts . | . . . Robots Hopped . | . . . Potential Cave-ins . | . . . Cave-ins Triggered . | . . . Exploration Rate (%) 27 | 4 12 66 Regions Visited 2 Branch Regions 1 Pre-discovered Areas 1 | . . 1 Known Exits Taken 1 | . 1 . Unknown Exits Taken 1 | 1 . . Scrap Searched . | . . . Spaces Dug . | . . . Terrain Destroyed . | . . . Melee . | . . . Projectile . | . . . AOE . | . . . Terrain Rammed . | . . . Walls Destroyed . | . . . Machines Disabled . | . . . Actions | -11 -10 -10 --------- Run | Yrd Mat Min Total 639 | 87 76 476 Wait 10 | . . 10 Move 530 | 54 48 428 Hop . | . . . Pick Up 11 | 6 2 3 Fast Attach 11 | 9 1 1 Attach 5 | 2 . 3 Detach 1 | . 1 . Swap 3 | . 2 1 Drop 8 | 4 . 4 Fire 57 | 12 22 23 Melee . | . . . Ram 3 | . . 3 Kick . | . . . Crush . | . . . Escape Stasis . | . . . Rewire . | . . . Trap . | . . . Miscellaneous . | . . . Route ------- -11/Scrapyard -10/Materials -10/Mines (discovered 1 exit: [*Mat]) History --------- Turn | Location | Event 14 | -11/Scrapyard | Discovered new exit (range 15) 115 | -11/Scrapyard | Entered Materials 220 | -10/Materials | Discovered new exit (range 13) 243 | -10/Materials | Identified exit to Mines 244 | -10/Materials | Entered Mines 272 | -10/Mines | Learned location of Storage (-7) 305 | -10/Mines | Build established: Mutant 378 | -10/Mines | Learned Materials garrison access intel 420 | -10/Mines | Assisted by bots powering up and referring to "LRC-V3" 655 | -10/Mines | Assembled infested the area 655 | -10/Mines | Found a hidden stash of uninstalled traps 660 | -10/Mines | Assisted by a Guerilla fighting off Assembled 716 | -10/Mines | Core integrity fell below 50% 717 | -10/Mines | Discovered new exit (range 15) 724 | -10/Mines | Core integrity fell below 20% 730 | -10/Mines | Destroyed by D-53 Grenadier with Mini Grenade Launcher Last Messages --------------- Mercenary 1a destroyed. U-05 Engineer lays Concrete. HV Slug penetrates Earth. U-05 Engineer builds a Wall. OD-PPE(h) destroyed. D-53 Grenadier destroyed. EXIT=FOUND D-53 Grenadier suffers critical hit (Destroy). K-01 Serf collects debris. Com. Wheel destroyed. U-05 Engineer lays Concrete. K-01 Serf collects debris. U-05 Engineer builds a Wall. The unstable cave ceiling collapses. Dropped Lrg. Storage Unit. The unstable cave ceiling collapses. U-05 Engineer builds a Wall. The unstable cave ceiling collapses. Acquired Flexi-carbon Leg. K-01 Serf collects debris. Map ----- +----------------------------------------------------+ | ??????????????## #### & ##????????????????????? | | ??????????????# #??# ####?????????????????? | | ??????????????# #??# ##????????????????? | | ??????????????# #??## #????????????????? | | ??????????????## #???## #???????????????? | | ???????????????# ##???## #??????????????? | | ???????????????# #????#### ????????????? | | ??????????????## #???????#### ?????????? | | ?????????????## ##??????????# ####????????? | | ?????????????# ##??????????# ###???????????? | | ??????# ##### #???????????###?????????????? | | ??????# #???????????????????????????? | | ??????# #???????????????????????????? | | ??????######### ###???????????????????????????? | | ??????????????# ##?????????????????????????????? | | ?????????????## #??????????????????????????????? | | ????????????## #????? #?????????#?????????????? | | ????????????# ##### #???????? #?????????????? | | ???????????## #??????? #?????????????? | | ?????## ### #?????? % ??????????????? | | ?????# #######????? ##??????????????? | | ????# # u ##### ??#????????????? | | ?? ## # ?? ?????????????? | | ??? ^ u## ## # #????????????? | | ??? ####### # k #????????????? | | ??????????#### @ %r k ????????? | | ?????????????## d %< ????????? | | ??????????????## !! = ##???????????? | | ???????????????## # #????????????? | | ????????????????# # # #?######????????????? | | ????????????????# # ##???????????????????? | | ????????????????### #####????????????????????? | | | | | | | | | | | | | | | | | | | | | | | | | | | | | | | | | | | | | +----------------------------------------------------+ Best States ------------- Heat Dissipation 25 Energy Generation 10 Energy Capacity 250 Matter Stores 300 Matter Capacity 300 Sight Range 16 Terrain Scan Density 10 Evasion (%) 50 Item Schematics ----------------- None Robot Schematics ------------------ None Fabricated ------------ Nothing Repaired ---------- Nothing Studied --------- None Alien Tech Used ----------------- None Achievements -------------- Oops Challenges ------------ None Game ------ Seed ImpulseCompositeRigger Manual? 0 Play Time 00:14:51 Cumulative 13.0 hours Start 2026.07.08 @ 21:02:13 End 2026.07.08 @ 21:15:22 Sessions 1 Manual Loads 0 Difficulty Rogue Special Mode None Game No. 17 Rogue 17 Adventurer 0 Explorer 0 Win Type - Total 0 Types 0/0/0/0/0/0/0/0/0/0 Lore% 10 Gallery% 12 Achievement% 12 Wizard Run 0 Options --------- Layout 1 ASCII 0 Keyboard 0 Movement Mouse Keybinds 0 Fullscreen 1 Font 18/SmallcapsGlow Map View 51x41 Zoom Use 0% Tactical HUD 0 Map Filters NONE Filters NONE Steam 1 RUN: 60cbf7ef-faa2-4fea-bf3b-6943088d90ad